bitfinex-derivatives/quotes_ETHF0:USTF0_20250123
["timestamp","ask_amount","ask_price","bid_price","bid_amount"]
[1737654442218,0.61217,3266.3,3266.0,0.6122]
[1737654442418,0.61217,3266.3,3266.1,0.61219]
[1737654442627,0.61217,3266.3,3266.0,0.6122]
[1737654443028,0.61216,3266.4,3266.1,0.61218]
[1737654443236,0.61216,3266.3,3266.1,0.61218]
[1737654443827,1.53021,3266.7,3265.8,6.09310081]
[1737654444027,1.53021,3266.7,3265.9,0.61223]
[1737654444028,0.6122,3266.1,3265.9,0.61223]
[1737654444431,0.61223,3265.9,3265.8,3.2078]
[1737654444935,1.5304,3266.3,3265.7,0.00459277]
[1737654444936,0.61225,3265.8,3265.7,0.00459277]
[1737654445636,0.61225,3265.8,3265.7,3.21239277]
[1737654445837,0.527,3266.2,3265.7,3.21239277]
[1737654446130,0.61222,3266.0,3265.9,0.61223]
[1737654446328,0.6122,3266.1,3266.0,0.6122]
[1737654446525,0.61221,3266.0,3265.9,0.61222]
[1737654446839,0.61222,3266.0,3265.8,4.01393081]
[1737654447039,3.2078,3266.7,3265.8,3.40170081]
[1737654447227,0.61222,3266.0,3265.9,0.61222]
[1737654447939,0.61223,3265.9,3265.8,4.01395081]
[1737654448427,3.2078,3266.1,3265.7,0.00459277]
[1737654448633,0.61225,3265.8,3265.7,0.00459277]
[1737654450631,4.56106296,3265.8,3265.7,0.00459277]
[1737654450830,0.6124,3265.0,3264.9,3.2078]
[1737654451031,4.73848,3265.7,3264.9,3.2078]
[1737654451227,3.2078,3265.7,3265.0,2.88530081]
[1737654451433,0.6123,3265.6,3265.5,0.6123]
[1737654451735,3.2078,3265.7,3265.6,0.61229]
[1737654451930,0.5241,3266.0,3265.7,0.61225]
[1737654452132,0.61225,3265.8,3265.7,0.61225]
[1737654452529,0.5286686,3266.0,3265.5,3.7357]
[1737654452736,0.61228,3265.7,3265.6,0.61228]
[1737654452936,0.61229,3265.6,3265.5,4.348]
[1737654453137,0.61228,3265.7,3265.6,0.61228]
[1737654453331,0.5286686,3266.0,3265.5,3.7357]
[1737654454035,0.61226,3265.8,3265.7,0.61227]
[1737654454232,3.7364686,3266.0,3265.3,0.00459277]
[1737654454531,0.61232,3265.4,3265.3,0.00459277]
[1737654455337,5.2670186,3266.0,3265.3,0.00459277]
[1737654455535,0.6123,3265.6,3265.5,0.61229]
[1737654455936,0.61231,3265.5,3265.4,3.49761081]
[1737654456137,5.2670186,3266.0,3265.4,2.88530081]
[1737654456332,3.7364686,3266.0,3265.4,2.88530081]
[1737654456653,0.61228,3265.7,3265.6,3.82007]
[1737654457142,0.5286686,3266.0,3265.4,2.88530081]
[1737654457444,0.61232,3265.4,3265.3,0.00459277]
[1737654457748,0.61232,3265.4,3265.3,0.61693277]
[1737654457936,0.61232,3265.4,3265.3,0.00459277]
[1737654459747,0.0018955,3265.6,3265.3,0.00459277]
[1737654460140,0.61232,3265.4,3265.3,0.00459277]
[1737654460643,12.46196481,3265.4,3265.3,2.77e-06]
[1737654460847,0.61253,3264.3,3264.2,3.2078]
[1737654461453,4.73887,3264.9,3264.2,3.82035]
[1737654461639,0.61252,3264.4,3264.3,0.61253]
[1737654461838,3.2078,3264.9,3264.2,6.09310081]
[1737654462045,3.2078,3264.9,3264.6,2.88530081]
[1737654462240,0.61244,3264.8,3264.7,0.61245]
[1737654462647,3.2078,3265.3,3264.7,0.61245]
[1737654462850,0.61244,3264.8,3264.7,0.61245]
[1737654463248,7.15404184,3265.3,3264.7,3.82025]
[1737654463449,0.61243,3264.9,3264.8,0.61243]
[1737654463643,0.61244,3264.8,3264.7,3.7375]
[1737654463844,0.61244,3264.8,3264.7,3.2078]
[1737654464045,0.61253,3264.3,3264.2,46.89769358]
[1737654464444,0.61253,3264.3,3264.2,43.68989358]
[1737654465052,2.594474,3264.7,3264.2,43.68989358]
[1737654465251,0.61253,3264.3,3264.2,43.68989358]
[1737654465847,0.61253,3264.3,3264.2,40.80459277]
[1737654467242,0.4882,3264.5,3264.2,40.80459277]
[1737654467448,3.2078,3265.1,3264.6,0.61247]
[1737654467745,0.61248,3264.6,3264.4,3.49780081]
[1737654467949,0.61251,3264.4,3264.3,3.2078]
[1737654469248,0.61247,3264.7,3264.5,0.61248]
[1737654469442,0.61247,3264.6,3264.5,0.61248]
[1737654469647,0.4863,3265.0,3264.5,40.8]
[1737654469847,0.61246,3264.7,3264.6,0.61247]
[1737654470047,0.4863,3265.0,3264.5,40.8]
[1737654470253,0.61247,3264.6,3264.5,40.8]
[1737654470650,0.61251,3264.4,3264.3,3.82033]
[1737654470843,0.61251,3264.4,3264.3,3.2078]
[1737654473554,1.53069,3265.7,3264.4,1.53129]
[1737654473861,0.5382,3265.4,3264.8,0.61244]
[1737654474055,1.53087,3265.3,3264.6,0.61247]
[1737654474251,1.53087,3265.3,3264.5,3.89540081]
[1737654474450,0.61245,3264.8,3264.5,44.69540081]
[1737654474754,0.61244,3264.8,3264.7,0.61245]
[1737654475056,0.61241,3265.0,3264.9,0.61241]
[1737654475255,0.5382,3265.4,3264.5,3.89540081]
[1737654475452,3.82019,3265.1,3264.5,3.89540081]
[1737654475654,0.61241,3265.0,3264.9,0.61241]
[1737654476459,3.82019,3265.1,3265.0,0.6124]
[1737654476764,3.82019,3265.1,3264.9,0.61241]
[1737654476948,3.82019,3265.1,3265.0,0.6124]
[1737654477154,3.2078,3265.1,3265.0,0.6124]
[1737654477656,3.82018,3265.1,3265.0,0.6124]
[1737654479560,0.61238,3265.1,3265.0,0.6124]
[1737654480354,0.61238,3265.2,3265.1,0.61237]
[1737654480560,0.5382,3265.4,3265.1,0.61238]
[1737654480858,3.92768718,3265.3,3265.2,0.61236]
[1737654481554,4.54002718,3265.3,3265.2,0.61236]
[1737654481860,0.5382,3265.4,3265.3,0.61234]
[1737654482162,3.82011,3265.5,3265.4,0.61232]
[1737654482454,3.2078,3265.5,3265.4,0.61232]
[1737654483760,3.2078,3265.5,3265.2,0.61235]
[1737654483761,0.61235,3265.3,3265.2,0.61235]
[1737654483955,0.61243,3264.9,3264.8,0.61243]
[1737654484157,3.9595355,3265.3,3264.3,3.2078]
[1737654484358,0.61243,3264.9,3264.8,0.61242]
[1737654486151,0.61242,3265.0,3264.9,0.6124]
[1737654486350,0.61244,3264.9,3264.8,0.61242]
[1737654486958,0.57438774,3265.3,3264.6,2.88530081]
[1737654487256,0.61241,3265.0,3264.9,0.61239]
[1737654487456,0.5036,3265.2,3264.5,0.4958]
[1737654487663,0.61246,3264.8,3264.7,0.61244]
[1737654488064,0.28719756,3265.1,3264.5,0.4958]
[1737654488265,0.5036,3265.2,3264.5,0.4958]
[1737654488561,1.11599,3265.2,3265.1,0.61238]
[1737654489065,0.5036,3265.2,3264.8,3.2078]
[1737654489263,0.61241,3265.1,3265.0,0.61239]
[1737654489959,0.61242,3264.9,3264.8,3.82024]
[1737654490152,0.61245,3264.8,3264.7,0.61245]
[1737654490357,0.61247,3264.7,3264.6,0.61247]
[1737654490558,0.61245,3264.8,3264.7,0.61244]
[1737654490754,0.5743934,3265.0,3264.2,6.09769358]
[1737654490965,4.00369011,3264.7,3264.2,3.21239277]
[1737654491259,0.61246,3264.8,3264.7,0.61244]
[1737654492664,0.28721551,3264.9,3264.3,0.5236]
[1737654492859,0.61248,3264.7,3264.6,0.61246]
[1737654493261,0.61247,3264.7,3264.6,0.61246]
[1737654493662,0.28721551,3264.9,3264.3,0.5236]
[1737654493862,1.53104,3265.0,3264.3,0.5236]
[1737654494060,3.96655358,3264.8,3264.2,3.82493277]
[1737654494261,0.61251,3264.5,3264.2,3.21239277]
[1737654494467,0.61249,3264.6,3264.5,0.61247]
[1737654494667,0.61246,3264.7,3264.6,0.61245]
[1737654494965,1.53096,3265.1,3264.2,0.00459277]
[1737654495267,3.2078,3265.0,3264.7,0.61244]
[1737654495464,0.61245,3264.8,3264.7,0.61244]
[1737654495969,0.89961551,3265.0,3264.6,3.2078]
[1737654496163,0.5036,3265.2,3264.7,1.0417]
[1737654496363,0.6124,3265.1,3265.0,0.61239]
[1737654496760,0.61242,3264.9,3264.8,0.61242]
[1737654497265,0.61244,3264.8,3264.7,1.0417]
[1737654497460,0.61244,3264.8,3264.7,1.65416]
[1737654497662,0.61243,3264.9,3264.8,0.61242]
[1737654498565,0.61244,3264.8,3264.7,1.0417]
[1737654498768,0.61244,3264.8,3264.7,0.5166]
[1737654498964,0.28720873,3265.0,3264.4,0.5091]
[1737654499269,4.49561445,3265.0,3264.3,0.4979]
[1737654499466,0.61251,3264.4,3264.3,1.11043]
[1737654499768,0.61251,3264.4,3264.3,0.4979]
[1737654503770,2.10559424,3264.7,3264.2,0.00459277]
[1737654503771,0.61253,3264.3,3264.2,0.00459277]
[1737654505065,7.82196551,3264.3,3264.2,2.77e-06]
[1737654505370,0.61277,3263.0,3262.9,4.67396036]
[1737654506665,3.82057,3263.0,3262.9,4.67396036]
[1737654506860,7.72222912,3263.0,3262.9,4.67396036]
[1737654507266,10.10168462,3263.0,3262.9,4.67396036]
[1737654507670,7.72222912,3263.0,3262.9,4.67396036]
[1737654507872,8.00963775,3263.0,3262.9,4.67396036]
[1737654508066,7.72222912,3263.0,3262.9,4.67396036]
[1737654508266,0.61283,3262.7,3262.6,0.00459277]
[1737654508660,4.6125963,3262.7,3262.6,0.00459277]
[1737654508865,0.61283,3262.7,3262.6,0.00459277]
[1737654509869,4.59452991,3262.7,3262.6,0.00459277]
[1737654510270,0.61283,3262.7,3262.6,0.00459277]
[1737654510470,0.52699277,3263.3,3262.6,6.09894131]
[1737654510673,0.61732277,3263.3,3263.1,0.61274]
[1737654510967,0.61269,3263.5,3263.0,6.09434854]
[1737654511175,0.4962,3264.0,3263.5,0.61267]
[1737654511373,0.4962,3264.0,3263.6,0.5307]
[1737654511374,0.61265,3263.7,3263.6,0.5307]
[1737654513074,0.61265,3263.7,3263.6,1.14336]
[1737654513271,0.61265,3263.7,3263.6,0.5307]
[1737654513472,0.00459277,3264.0,3263.6,0.5307]
[1737654513777,0.00459277,3264.0,3263.9,0.61261]
[1737654514476,0.61262,3263.9,3263.7,0.61264]
[1737654514775,0.61262,3263.8,3263.7,0.61264]
[1737654515179,0.61262,3263.8,3263.6,1.14335]
[1737654515475,0.00459277,3264.0,3263.6,0.5307]
[1737654515876,0.00459277,3264.0,3263.7,0.61264]
[1737654516173,0.00459277,3264.0,3263.6,0.5307]
[1737654516373,0.00459277,3264.0,3263.9,0.61261]
[1737654516579,3.2078,3264.7,3263.9,1.0359]
[1737654516775,0.61248,3264.6,3264.5,0.61248]
[1737654517076,3.2078,3264.7,3264.3,2.88654854]
[1737654517271,0.61249,3264.6,3264.3,2.88654854]
[1737654517478,3.2078,3264.7,3264.3,2.88654854]
[1737654517677,3.82026,3264.7,3264.6,0.61247]
[1737654518569,3.2078,3264.7,3264.6,0.61247]
[1737654521772,3.82026,3264.7,3264.6,0.61247]
[1737654523177,3.2078,3264.7,3264.3,2.88654854]
[1737654523377,0.6125,3264.5,3264.4,0.61251]
[1737654524485,3.2078,3264.7,3264.3,2.88654854]
[1737654524679,0.61249,3264.6,3264.5,0.61248]
[1737654525180,0.61252,3264.4,3264.3,0.61252]
[1737654525976,0.61254,3264.3,3264.2,0.61253]
[1737654526178,0.61254,3264.3,3264.2,0.61254]
[1737654526486,0.61255,3264.2,3264.1,0.00459277]
[1737654528788,4.64551028,3264.2,3264.1,0.00459277]
[1737654529180,5.16681028,3264.2,3264.1,0.00459277]
[1737654531077,0.61254,3264.4,3264.1,0.00459277]
[1737654531280,0.61254,3264.4,3264.3,0.61251]
[1737654531692,3.7052,3264.7,3264.2,3.39746921]
[1737654531883,0.61248,3264.6,3264.5,0.61247]
[1737654532080,0.0045686,3264.8,3264.5,2.38056921]
[1737654532383,0.0045686,3264.8,3264.7,0.61246]
[1737654533186,0.0045686,3264.8,3264.7,3.82026]
[1737654534280,3.2078,3265.5,3265.4,0.61232]
[1737654534479,3.82011,3265.5,3265.4,0.61232]
[1737654534787,3.82011,3265.5,3265.2,2.88216951]
[1737654534788,0.61234,3265.4,3265.3,0.61233]
[1737654534978,3.2078,3265.5,3265.1,0.5074]
[1737654535177,3.82011,3265.5,3265.4,0.61232]
[1737654535786,0.61231,3265.5,3265.4,0.61232]
[1737654536186,0.61234,3265.3,3265.2,1.13715]
[1737654536389,0.61234,3265.3,3265.2,4.34496]
[1737654536787,0.61234,3265.4,3265.3,0.61232]
[1737654536987,0.61232,3265.5,3265.4,0.61232]
[1737654537393,0.61413212,3265.5,3265.4,0.61232]
[1737654537692,0.00181212,3265.5,3265.4,0.61232]
[1737654538591,0.61412212,3265.5,3265.4,0.61232]
[1737654538794,0.00181212,3265.5,3265.4,0.61232]
[1737654539397,3.2078,3266.5,3265.4,1.53081]
[1737654539584,0.6122,3266.1,3266.0,0.6122]
[1737654539790,0.61218,3266.2,3266.1,0.61218]
[1737654540087,3.7477,3266.5,3265.8,6.08996951]
[1737654540390,1.14355,3266.4,3266.3,0.61216]
[1737654540690,1.14354,3266.4,3266.3,0.61216]
[1737654540896,0.61214,3266.4,3266.3,0.61216]
[1737654541291,0.6122,3266.1,3266.0,0.6122]
[1737654541591,3.7477,3266.5,3265.9,0.5258]
[1737654541793,1.53035,3266.4,3265.8,3.2078]
[1737654541998,0.61223,3265.9,3265.8,3.82004]
[1737654542491,4.04665243,3266.4,3265.8,3.2078]
[1737654542796,0.61222,3266.0,3265.9,0.61222]
[1737654542995,3.2078,3266.0,3265.7,0.00459277]
[1737654543188,0.61225,3265.8,3265.7,0.00459277]
[1737654543590,0.61224,3265.9,3265.8,0.61224]
[1737654544295,0.61224,3265.9,3265.7,0.00459277]
[1737654544599,3.2078,3266.0,3265.7,0.00459277]
[1737654544791,3.82002,3266.0,3265.9,0.61223]
[1737654544986,0.61225,3265.8,3265.7,0.00459277]
[1737654552194,4.54068742,3265.8,3265.7,0.00459277]
[1737654552399,0.61238,3265.1,3265.0,4.01195951]
[1737654552591,1.81782784,3265.7,3265.2,0.61236]
[1737654552791,0.61237,3265.3,3265.2,0.61236]
[1737654553202,0.61232,3265.5,3265.4,0.6123]
[1737654553994,0.00459277,3265.6,3265.2,2.37780993]
[1737654554209,0.61688277,3265.6,3265.5,2.99011993]
[1737654554897,0.61688277,3265.6,3265.5,2.37780993]
[1737654555101,0.61688277,3265.6,3265.5,2.99011993]
[1737654555308,0.61232,3265.4,3265.3,0.4914]
[1737654557602,0.61232,3265.4,3265.3,1.10374]
[1737654557800,0.61232,3265.4,3265.3,0.4914]
[1737654559104,0.61232,3265.4,3265.3,1.10374]
[1737654559304,0.61232,3265.4,3265.3,0.4914]
[1737654559902,0.00459277,3265.6,3265.0,0.5174]
[1737654560102,0.61238,3265.1,3265.0,0.61238]
[1737654561600,0.61238,3265.2,3265.1,0.61236]
[1737654562010,0.5743022,3265.5,3264.9,5.5902027]
[1737654562209,0.61234,3265.4,3265.3,0.61233]
[1737654562503,0.61237,3265.3,3265.2,0.61235]
[1737654566707,0.61239,3265.2,3265.1,0.61237]
[1737654567205,0.6124,3265.0,3264.9,0.00459277]
[1737654567406,3.8202,3265.0,3264.9,0.00459277]
[1737654567609,4.54767434,3265.0,3264.9,0.00459277]
[1737654567803,4.83481959,3265.0,3264.9,0.00459277]
[1737654568008,4.3945022,3265.0,3264.9,0.00459277]
[1737654568206,7.48467155,3265.0,3264.2,3.2078]
[1737654568412,0.61255,3264.2,3264.1,0.61257]
[1737654568603,0.61257,3264.1,3264.0,2.99038993]
[1737654568807,0.61259,3264.0,3263.9,1.0272]
[1737654569111,0.61266,3263.6,3263.5,5.75222543]
[1737654569303,0.6127,3263.4,3263.3,3.2078]
[1737654570203,0.51799277,3263.9,3263.8,0.61262]
[1737654570412,0.00459277,3263.9,3263.8,0.61262]
[1737654570612,0.00459277,3263.9,3263.8,1.12062]
[1737654570808,0.00459277,3263.9,3263.8,1.64152]
[1737654573312,0.61720277,3263.9,3263.8,1.0289]
[1737654573514,0.61720277,3263.9,3263.8,0.508]
[1737654573719,0.61262,3263.8,3263.7,3.82043]
[1737654573909,0.61262,3263.8,3263.7,3.2078]
[1737654574307,1.14422,3263.8,3263.7,3.2078]
[1737654574814,0.5316,3263.8,3263.7,3.82044]
[1737654575015,1.14422,3263.8,3263.7,3.82044]
[1737654576117,1.14422,3263.8,3263.7,0.61264]
[1737654576820,0.61264,3263.7,3263.6,3.2078]
[1737654577016,0.5316,3263.8,3263.3,0.61271]
[1737654577211,0.5312,3263.6,3263.2,44.01239277]
[1737654577408,0.5316,3263.8,3263.4,2.37780993]
[1737654577610,0.61721277,3263.9,3263.8,0.61262]
[1737654577812,0.00459277,3263.9,3263.6,3.2078]
[1737654578008,0.61264,3263.8,3263.7,0.61264]
[1737654579621,0.61264,3263.7,3263.6,3.2078]
[1737654581125,0.61268,3263.5,3263.4,0.5378]
[1737654581417,0.61268,3263.5,3263.3,1.14981]
[1737654581418,5.58270903,3263.8,3263.2,3.21239277]
[1737654581618,0.61271,3263.4,3263.3,0.61271]
[1737654582423,4.05110903,3263.8,3263.2,3.21239277]
[1737654582720,0.61264,3263.7,3263.6,3.82046]
[1737654582922,0.61264,3263.7,3263.6,3.2078]
[1737654584024,0.00459277,3263.9,3263.6,3.2078]
[1737654584232,0.61263,3263.8,3263.7,0.61263]
[1737654584919,0.61264,3263.7,3263.6,3.82045]
[1737654586324,0.61264,3263.7,3263.6,3.2078]
[1737654586529,0.61263,3263.8,3263.7,0.61262]
[1737654587025,0.61263,3263.8,3263.7,1.64572]
[1737654587819,0.61263,3263.8,3263.7,1.0331]
[1737654588019,0.61263,3263.8,3263.7,1.64574]
[1737654588426,0.61263,3263.8,3263.7,1.0331]
[1737654589720,0.00459277,3263.9,3263.8,0.61262]
[1737654591121,0.00459277,3263.9,3263.8,41.41262]
[1737654591826,4.73877,3265.1,3263.8,41.41262]
[1737654591827,0.61244,3264.9,3264.8,0.61242]
[1737654593333,3.2078,3265.1,3264.6,1.0681]
[1737654593628,0.61244,3264.9,3264.8,0.61242]
[1737654594032,0.61242,3265.0,3264.9,0.61241]
[1737654594230,0.61697277,3265.2,3265.1,0.61238]
[1737654594430,0.00459277,3265.2,3265.1,0.61238]
[1737654594933,0.61695277,3265.2,3265.1,0.61238]
[1737654595130,0.00459277,3265.2,3264.9,0.5086]
[1737654595323,0.61239,3265.1,3265.0,0.61238]
[1737654595522,0.6124,3265.0,3264.9,1.121]
[1737654596537,0.00459277,3265.2,3264.6,3.2078]
[1737654596538,0.61246,3264.7,3264.6,3.2078]
[1737654597633,0.00459277,3265.2,3264.6,3.2078]
[1737654597826,0.61246,3264.7,3264.6,3.2078]
[1737654598027,0.61246,3264.7,3264.6,3.82027]
[1737654598432,0.61246,3264.7,3264.6,3.2078]
[1737654598834,0.61246,3264.7,3264.6,3.82027]
[1737654599835,5.52078336,3265.1,3264.2,5.58560993]
[1737654600130,3.2078,3265.0,3264.2,3.2078]
[1737654600334,0.61251,3264.5,3264.4,0.6125]
[1737654601323,0.61253,3264.3,3264.2,3.2078]
[1737654601534,0.61264,3263.8,3263.7,3.82042]
[1737654601734,1.0202,3264.2,3263.7,3.2078]
[1737654602032,1.0202,3264.2,3264.1,0.61257]
[1737654602227,3.2078,3264.6,3264.5,0.61249]
[1737654602531,3.82027,3264.6,3264.5,0.61249]
[1737654602729,0.61247,3264.6,3264.5,0.61249]
[1737654602930,0.61245,3264.8,3264.7,0.61244]
[1737654603132,0.61243,3264.9,3264.8,0.61243]
[1737654603730,1.0202,3265.1,3264.6,1.53117]
[1737654603929,3.2078,3265.6,3265.1,0.61238]
[1737654604131,0.5238,3265.9,3265.1,0.61238]
[1737654604329,0.61227,3265.7,3265.1,3.05196]
[1737654604527,0.61231,3265.5,3265.4,0.61232]
[1737654604726,0.5238,3265.9,3265.5,0.6123]
[1737654604928,0.61231,3265.5,3265.4,0.61231]
[1737654605132,0.61236,3265.2,3265.1,0.61238]
[1737654605339,0.5,3265.4,3264.6,7.10660993]
[1737654605529,6.08560993,3265.4,3264.8,0.00459277]
[1737654605729,4.52504109,3265.3,3264.8,0.00459277]
[1737654605924,3.99234109,3265.3,3264.8,2.3824027]
[1737654606140,3.2078,3265.4,3265.3,0.61234]
[1737654607140,0.5327,3265.7,3265.1,2.37780993]
[1737654607439,0.5327,3265.7,3265.6,0.61229]
[1737654608435,1.14497,3265.7,3265.6,0.61229]
[1737654608838,0.5327,3265.7,3265.6,0.61229]
[1737654609040,1.14497,3265.7,3265.6,0.61229]
[1737654609238,0.61231,3265.5,3265.4,0.61231]
[1737654609747,0.6123,3265.6,3265.5,0.61231]
[1737654610145,0.61231,3265.5,3265.4,0.61231]
[1737654610349,0.5327,3265.7,3265.3,1.542]
[1737654610735,0.5327,3265.7,3265.0,3.2078]
[1737654610940,0.61235,3265.3,3265.2,0.61235]
[1737654611238,0.61229,3265.6,3265.5,0.6123]
[1737654611442,0.5327,3265.7,3265.6,0.61229]
[1737654611644,1.14497,3265.7,3265.6,0.61229]
[1737654611844,0.61231,3265.5,3265.4,0.61231]
[1737654612051,0.6123,3265.6,3265.5,0.61231]
[1737654612241,0.61229,3265.6,3265.1,2.37780993]
[1737654612548,0.61229,3265.6,3265.5,0.61231]
[1737654613452,0.5327,3265.7,3265.1,2.37780993]
[1737654613848,0.5327,3265.7,3265.0,3.2078]
[1737654614147,0.61236,3265.2,3265.1,0.61238]
[1737654614540,4.49783676,3265.6,3264.9,1.0361]
[1737654614745,0.61234,3265.4,3265.3,0.61234]
[1737654614949,2.91050993,3265.7,3265.2,3.2078]
[1737654615146,1.12534,3265.3,3265.2,3.2078]
[1737654615746,0.513,3265.3,3265.0,0.61239]
[1737654615944,0.61236,3265.2,3265.1,0.61238]
[1737654616448,0.513,3265.3,3264.8,0.00459277]
[1737654616653,0.5327,3265.7,3265.1,2.37780993]
[1737654616957,1.10499,3265.6,3265.1,2.37780993]
[1737654617144,1.10499,3265.6,3265.1,2.90040993]
[1737654617344,1.10499,3265.6,3265.5,0.61231]
[1737654617647,0.4927,3265.6,3265.5,0.61231]
[1737654617854,1.10499,3265.6,3265.5,0.61231]
[1737654618457,0.4927,3265.6,3265.5,0.61231]
[1737654619046,1.10499,3265.6,3265.5,0.61231]
[1737654619352,0.4927,3265.6,3265.5,0.61231]
[1737654619553,3.2078,3266.0,3265.2,0.508]
[1737654619846,3.82001,3266.0,3265.9,0.61223]
[1737654620052,0.61225,3265.9,3265.8,0.61224]
[1737654620246,1.11795,3265.9,3265.8,0.61224]
[1737654620740,0.61227,3265.8,3265.7,0.61226]
[1737654621141,1.11794,3265.9,3265.8,0.61225]
[1737654622751,3.2078,3266.0,3265.8,2.37780993]
[1737654622956,1.0369,3266.9,3265.9,1.63713]
[1737654623162,1.0369,3266.9,3266.2,3.2078]
[1737654623848,0.61208,3266.8,3266.7,0.61208]
[1737654624054,1.0369,3266.9,3266.2,3.2078]
[1737654624251,1.64895,3266.9,3266.3,0.61216]
[1737654624449,1.0369,3266.9,3266.7,0.61207]
[1737654624649,0.61206,3266.8,3266.7,0.61207]
[1737654625047,0.61206,3266.8,3266.7,0.61208]
[1737654625242,1.0369,3266.9,3266.2,3.2078]
[1737654625449,0.61207,3266.8,3266.7,0.61207]
[1737654625643,0.61207,3266.8,3266.2,3.2078]
[1737654625644,0.61208,3266.7,3266.6,0.61209]
[1737654625849,0.6121,3266.6,3266.5,0.61211]
[1737654626155,0.61212,3266.6,3266.4,0.61213]
[1737654626556,0.61212,3266.6,3266.4,0.61212]
[1737654626855,0.61215,3266.4,3266.3,0.61216]
[1737654627254,3.97559009,3266.8,3266.2,3.2078]
[1737654627850,3.97559009,3266.8,3266.4,2.37780993]
[1737654628251,3.97559009,3266.8,3266.6,0.61208]
[1737654628556,0.61206,3266.8,3266.7,0.61207]
[1737654628958,1.0369,3266.9,3266.4,2.37780993]
[1737654629145,1.0369,3266.9,3266.8,0.61206]
[1737654629345,1.0369,3266.9,3266.5,0.9923]
[1737654629346,1.0369,3266.9,3266.5,1.4928]
[1737654629554,1.64895,3266.9,3266.8,0.61206]
[1737654629959,1.0369,3266.9,3266.5,1.4928]
[1737654630154,1.0369,3266.9,3266.7,0.61206]
[1737654630155,0.61207,3266.8,3266.7,0.61206]
[1737654630357,1.64895,3266.9,3266.8,0.61206]
[1737654630665,0.61207,3266.8,3266.7,0.61208]
[1737654630861,1.0369,3266.9,3266.5,0.9952]
[1737654631061,0.61207,3266.8,3266.7,0.61207]
[1737654631263,0.61213,3266.5,3266.4,0.61213]
[1737654631563,0.61215,3266.4,3266.3,0.61215]
[1737654632062,0.61213,3266.5,3266.4,0.61213]
[1737654632562,0.61214,3266.4,3266.3,0.61214]
[1737654632960,3.2078,3266.6,3266.1,0.00459277]
[1737654633266,0.61212,3266.5,3266.4,0.61212]
[1737654634463,0.61217,3266.2,3266.1,0.00459277]
[1737654634653,3.81997,3266.2,3266.1,0.00459277]
[1737654635262,3.81997,3266.2,3266.1,0.61678277]
[1737654635460,3.81997,3266.2,3266.1,0.00459277]
[1737654635958,3.81997,3266.2,3266.1,0.61678277]
[1737654636357,3.81997,3266.2,3266.1,0.00459277]
[1737654636957,7.76013351,3266.2,3266.1,0.00459277]
[1737654637155,12.43510696,3266.2,3265.0,3.2078]
[1737654637363,3.2078,3265.5,3265.0,3.2078]
[1737654637566,1.62814,3265.4,3265.2,0.61235]
[1737654637759,1.0158,3265.4,3265.0,3.2078]
[1737654637959,1.0158,3265.4,3265.3,0.61234]
[1737654638565,0.61229,3265.6,3265.5,0.6123]
[1737654638762,0.00459277,3265.7,3265.2,2.37780993]
[1737654639166,0.61233,3265.5,3265.4,0.61231]
[1737654639766,0.6123,3265.6,3265.5,0.61229]
[1737654640264,0.00459277,3265.7,3265.5,2.37780993]
[1737654640456,0.00459277,3265.7,3265.6,0.61229]
[1737654640663,0.00459277,3265.7,3265.6,1.63539]
[1737654642066,0.61686277,3265.7,3265.6,1.10049]
[1737654642261,0.61686277,3265.7,3265.6,0.4882]
[1737654642567,0.61231,3265.5,3265.4,0.61231]
[1737654644466,0.61231,3265.5,3265.2,2.88280993]
[1737654644467,1.6213,3265.6,3265.5,0.61231]
[1737654644863,0.61232,3265.5,3265.4,0.61231]
[1737654645670,0.6123,3265.6,3265.5,0.61229]
[1737654645873,0.61686277,3265.7,3265.6,0.61229]
[1737654646570,0.00459277,3265.7,3265.6,0.61229]
[1737654647071,0.00459277,3265.7,3265.4,3.2078]
[1737654647072,0.61232,3265.5,3265.4,0.61231]
[1737654647474,1.6524,3265.6,3265.5,0.61231]
[1737654648671,0.61234,3265.4,3265.3,0.61234]
[1737654648872,0.61236,3265.2,3265.1,1.62637]
[1737654649369,1.53077,3265.5,3265.0,0.00459277]
[1737654649568,0.61238,3265.1,3265.0,0.00459277]
[1737654650370,7.85700859,3265.1,3265.0,0.00459277]
[1737654650564,0.61253,3264.3,3264.2,3.2078]
[1737654650764,0.61255,3264.2,3264.0,1.63108]
[1737654650965,0.61255,3264.2,3264.0,1.0185]
[1737654651274,4.73902,3264.6,3264.0,1.63108]
[1737654651275,0.61257,3264.1,3264.0,1.63108]
[1737654652475,0.5308,3264.4,3264.0,1.0185]
[1737654652667,0.5308,3264.4,3264.0,3.39630993]
[1737654652871,0.61254,3264.3,3264.2,0.61253]
[1737654653577,5.26612,3265.0,3264.0,3.39630993]
[1737654653771,0.5176,3264.8,3264.5,0.61248]
[1737654653969,0.61249,3264.6,3264.5,0.61248]
[1737654654470,0.5176,3264.8,3264.3,2.37780993]
[1737654654773,1.13005,3264.8,3264.7,0.61246]
[1737654655175,0.61247,3264.7,3264.6,0.61246]
[1737654655573,0.61249,3264.6,3264.5,0.61248]
[1737654655977,0.61247,3264.7,3264.6,0.61246]
[1737654657378,0.6125,3264.6,3264.5,0.61248]
[1737654658680,0.61251,3264.4,3264.3,2.99032993]
[1737654659479,0.61251,3264.5,3264.4,0.6125]
[1737654659671,0.5176,3264.8,3264.4,0.5249]
[1737654659877,0.61249,3264.6,3264.5,0.61248]
[1737654660271,0.61249,3264.5,3264.4,1.13741]
[1737654663179,0.61249,3264.5,3264.4,0.5249]
[1737654663483,0.61249,3264.5,3264.4,1.13741]
[1737654663790,0.5176,3264.8,3264.4,0.5249]
[1737654664086,0.61249,3264.6,3264.5,0.61248]